[Event "*** Titled Tuesday Blitz"]
[Site "Chess.com"]
[Date "2021.02.02"]
[Round "8"]
[White "ShahMatKanal"]
[Black "K_A_S_T_O_R"]
[Result "0-1"]
[WhiteElo "2487"]
[BlackElo "2730"]
[TimeControl "180+1"]
[EndTime "11:29:31 PST"]
[Termination "K_A_S_T_O_R won on time"]

1. c4 {[%clk 0:03:00.9]} 1... c5 {[%clk 0:02:59.6]} 2. b3 {[%clk 0:02:59.9]}
2... Nf6 {[%clk 0:02:59]} 3. Bb2 {[%clk 0:02:59.9]} 3... b6 {[%clk 0:02:58.9]}
4. g3 {[%clk 0:02:49]} 4... Bb7 {[%clk 0:02:58.2]} 5. Nf3 {[%clk 0:02:49.6]}
5... e6 {[%clk 0:02:57.7]} 6. Bg2 {[%clk 0:02:49.7]} 6... Be7 {[%clk 0:02:58.1]}
7. O-O {[%clk 0:02:49.9]} 7... d6 {[%clk 0:02:58.1]} 8. Qc2 {[%clk 0:02:45.7]}
8... Nbd7 {[%clk 0:02:56.7]} 9. d4 {[%clk 0:02:38.8]} 9... cxd4 {[%clk
0:02:55.6]} 10. Bxd4 {[%clk 0:02:32.7]} 10... a6 {[%clk 0:02:55]} 11. Nbd2
{[%clk 0:02:31.5]} 11... Qc7 {[%clk 0:02:54.5]} 12. Rac1 {[%clk 0:02:30]} 12...
O-O {[%clk 0:02:53.7]} 13. Qb2 {[%clk 0:02:13.8]} 13... Rac8 {[%clk 0:02:50.9]}
14. h3 {[%clk 0:02:03.8]} 14... Rfd8 {[%clk 0:02:49.5]} 15. Rfd1 {[%clk
0:01:58.1]} 15... Qb8 {[%clk 0:02:42.9]} 16. Be3 {[%clk 0:01:50.2]} 16... Nc5
{[%clk 0:02:38.3]} 17. Ne1 {[%clk 0:01:40.4]} 17... Bxg2 {[%clk 0:02:35.6]} 18.
Nxg2 {[%clk 0:01:37.9]} 18... Qb7 {[%clk 0:02:35.9]} 19. Nf4 {[%clk 0:01:31.4]}
19... h6 {[%clk 0:02:33]} 20. Nf3 {[%clk 0:01:25.3]} 20... Nce4 {[%clk
0:02:29.7]} 21. Nd3 {[%clk 0:01:19.8]} 21... b5 {[%clk 0:02:24.1]} 22. cxb5
{[%clk 0:01:17.6]} 22... axb5 {[%clk 0:02:24.6]} 23. Nd4 {[%clk 0:01:07.3]}
23... b4 {[%clk 0:02:20.1]} 24. Rxc8 {[%clk 0:01:03.9]} 24... Rxc8 {[%clk
0:02:19.5]} 25. Rc1 {[%clk 0:01:04.3]} 25... Nc3 {[%clk 0:02:04.5]} 26. Re1
{[%clk 0:00:45]} 26... d5 {[%clk 0:02:00.4]} 27. Nc1 {[%clk 0:00:39.7]} 27... e5
{[%clk 0:01:57]} 28. Nf5 {[%clk 0:00:37.8]} 28... d4 {[%clk 0:01:53.9]} 29.
Nxe7+ {[%clk 0:00:34.9]} 29... Qxe7 {[%clk 0:01:52.8]} 30. Bd2 {[%clk
0:00:35.8]} 30... Ra8 {[%clk 0:01:47]} 31. e3 {[%clk 0:00:31.3]} 31... Qd6
{[%clk 0:01:39.5]} 32. exd4 {[%clk 0:00:30.9]} 32... exd4 {[%clk 0:01:39.2]} 33.
Bf4 {[%clk 0:00:26.3]} 33... Qd7 {[%clk 0:01:39.1]} 34. Kh2 {[%clk 0:00:23.4]}
34... Qb5 {[%clk 0:01:34.1]} 35. Qd2 {[%clk 0:00:21.8]} 35... Qd5 {[%clk
0:01:27.2]} 36. Re5 {[%clk 0:00:19.3]} 36... Qd7 {[%clk 0:01:26.5]} 37. Re1
{[%clk 0:00:17.2]} 37... Nfe4 {[%clk 0:01:23.4]} 38. Qc2 {[%clk 0:00:14]} 38...
Nc5 {[%clk 0:01:22.9]} 39. Qd2 {[%clk 0:00:11.7]} 39... Ne6 {[%clk 0:01:13.5]}
40. g4 {[%clk 0:00:08.1]} 40... Qd5 {[%clk 0:01:02]} 41. Bg3 {[%clk 0:00:08.1]}
41... Ne4 {[%clk 0:01:01.4]} 42. Qc2 {[%clk 0:00:06.9]} 42... N4g5 {[%clk
0:01:00.6]} 43. Rd1 {[%clk 0:00:02.9]} 43... Nf3+ {[%clk 0:00:59.3]} 44. Kh1
{[%clk 0:00:02.9]} 44... Ne1+ {[%clk 0:00:59.4]} 0-1

[Event "*** Titled Tuesday Blitz"]
[Site "Chess.com"]
[Date "2021.02.02"]
[Round "8"]
[White "TST2014"]
[Black "CM_rui"]
[Result "1-0"]
[WhiteElo "2554"]
[BlackElo "2370"]
[TimeControl "180+1"]
[EndTime "11:29:31 PST"]
[Termination "TST2014 won by checkmate"]

1. d4 {[%clk 0:03:00.9]} 1... Nf6 {[%clk 0:03:00]} 2. c4 {[%clk 0:02:59.5]} 2...
e6 {[%clk 0:03:00.1]} 3. Nf3 {[%clk 0:02:59.1]} 3... Bb4+ {[%clk 0:03:00.6]} 4.
Bd2 {[%clk 0:02:58.5]} 4... Qe7 {[%clk 0:03:01]} 5. g3 {[%clk 0:02:55.8]} 5...
O-O {[%clk 0:03:01.1]} 6. Bg2 {[%clk 0:02:55.7]} 6... Bxd2+ {[%clk 0:03:00.3]}
7. Nbxd2 {[%clk 0:02:53.6]} 7... d6 {[%clk 0:03:01.2]} 8. O-O {[%clk 0:02:52.9]}
8... e5 {[%clk 0:03:00.3]} 9. e4 {[%clk 0:02:52.3]} 9... Bg4 {[%clk 0:02:55.3]}
10. d5 {[%clk 0:02:51.7]} 10... a5 {[%clk 0:02:52.9]} 11. Qc2 {[%clk 0:02:42.7]}
11... Na6 {[%clk 0:02:51.7]} 12. Ne1 {[%clk 0:02:42.4]} 12... Be2 {[%clk
0:02:39.4]} 13. Nd3 {[%clk 0:02:39.2]} 13... Bxf1 {[%clk 0:02:37.8]} 14. Rxf1
{[%clk 0:02:40]} 14... Nd7 {[%clk 0:02:33.1]} 15. b3 {[%clk 0:02:37.7]} 15...
Nb4 {[%clk 0:02:23]} 16. Qb1 {[%clk 0:02:36.3]} 16... Nxd3 {[%clk 0:02:20.1]}
17. Qxd3 {[%clk 0:02:37.2]} 17... Nc5 {[%clk 0:02:16.5]} 18. Qc2 {[%clk
0:02:37.2]} 18... g6 {[%clk 0:02:13]} 19. Bh3 {[%clk 0:02:30]} 19... Qg5 {[%clk
0:02:04.4]} 20. Bg2 {[%clk 0:02:16]} 20... f5 {[%clk 0:01:43.9]} 21. f4 {[%clk
0:02:11.8]} 21... Qf6 {[%clk 0:01:31.5]} 22. exf5 {[%clk 0:01:54.1]} 22... Qxf5
{[%clk 0:01:17.2]} 23. Be4 {[%clk 0:01:53.7]} 23... Nxe4 {[%clk 0:01:11.5]} 24.
Qxe4 {[%clk 0:01:53.2]} 24... Qxe4 {[%clk 0:00:58.9]} 25. Nxe4 {[%clk
0:01:53.3]} 25... exf4 {[%clk 0:00:59.4]} 26. gxf4 {[%clk 0:01:53.5]} 26... Rae8
{[%clk 0:00:42]} 27. Ng5 {[%clk 0:01:49.7]} 27... Re2 {[%clk 0:00:41.8]} 28. Ne6
{[%clk 0:01:49.3]} 28... Rf7 {[%clk 0:00:42.3]} 29. Rf2 {[%clk 0:01:46.6]} 29...
Rxf2 {[%clk 0:00:37.4]} 30. Kxf2 {[%clk 0:01:47.5]} 30... g5 {[%clk 0:00:38]}
31. Ke3 {[%clk 0:01:44.1]} 31... gxf4+ {[%clk 0:00:35.2]} 32. Nxf4 {[%clk
0:01:45]} 32... Kg7 {[%clk 0:00:32]} 33. a3 {[%clk 0:01:38.6]} 33... Kf6 {[%clk
0:00:27.3]} 34. Ke4 {[%clk 0:01:37.7]} 34... Kg5 {[%clk 0:00:23.6]} 35. Ne6+
{[%clk 0:01:36.7]} 35... Kg4 {[%clk 0:00:23.8]} 36. b4 {[%clk 0:01:32.6]} 36...
a4 {[%clk 0:00:20.9]} 37. c5 {[%clk 0:01:32.2]} 37... h5 {[%clk 0:00:18.7]} 38.
c6 {[%clk 0:01:19]} 38... bxc6 {[%clk 0:00:09.5]} 39. dxc6 {[%clk 0:01:19.1]}
39... Re7 {[%clk 0:00:08.3]} 40. Kd5 {[%clk 0:01:19.2]} 40... Kf5 {[%clk
0:00:04.9]} 41. Nd4+ {[%clk 0:01:17.6]} 41... Kf4 {[%clk 0:00:05.3]} 42. Ne6+
{[%clk 0:01:16.6]} 42... Rxe6 {[%clk 0:00:03.9]} 43. Kxe6 {[%clk 0:01:16.7]}
43... Ke4 {[%clk 0:00:04.4]} 44. b5 {[%clk 0:01:16.3]} 44... d5 {[%clk 0:00:05]}
45. b6 {[%clk 0:01:16.5]} 45... d4 {[%clk 0:00:04.3]} 46. bxc7 {[%clk
0:01:15.9]} 46... d3 {[%clk 0:00:05.2]} 47. c8=Q {[%clk 0:01:15.5]} 47... d2
{[%clk 0:00:04.9]} 48. Qd7 {[%clk 0:01:15.4]} 48... h4 {[%clk 0:00:05.1]} 49. c7
{[%clk 0:01:15.5]} 49... h3 {[%clk 0:00:06]} 50. c8=Q {[%clk 0:01:15.7]} 50...
d1=Q {[%clk 0:00:05.7]} 51. Qxd1 {[%clk 0:01:14.4]} 51... Ke3 {[%clk 0:00:06.6]}
52. Qc5+ {[%clk 0:01:13.1]} 52... Kf4 {[%clk 0:00:06.5]} 53. Qe5# {[%clk
0:01:11.4]} 1-0

[Event "*** Titled Tuesday Blitz"]
[Site "Chess.com"]
[Date "2021.02.02"]
[Round "8"]
[White "orrbaverlekszarnyon"]
[Black "esrosenberg"]
[Result "0-1"]
[WhiteElo "2281"]
[BlackElo "2190"]
[TimeControl "180+1"]
[EndTime "11:29:34 PST"]
[Termination "esrosenberg won by checkmate"]

1. d4 {[%clk 0:03:00.9]} 1... Nf6 {[%clk 0:02:59.6]} 2. Nc3 {[%clk 0:02:57.6]}
2... d5 {[%clk 0:02:57.5]} 3. Bf4 {[%clk 0:02:56.9]} 3... a6 {[%clk 0:02:57.1]}
4. Nf3 {[%clk 0:02:56.2]} 4... c5 {[%clk 0:02:55.1]} 5. e3 {[%clk 0:02:55]} 5...
Nc6 {[%clk 0:02:54.3]} 6. h3 {[%clk 0:02:52.3]} 6... Bf5 {[%clk 0:02:54]} 7. g4
{[%clk 0:02:52]} 7... Be4 {[%clk 0:02:53.4]} 8. Bd3 {[%clk 0:02:50.5]} 8... Bxf3
{[%clk 0:02:46.8]} 9. Qxf3 {[%clk 0:02:49.4]} 9... cxd4 {[%clk 0:02:47.2]} 10.
exd4 {[%clk 0:02:30.4]} 10... Nxd4 {[%clk 0:02:47.3]} 11. Qg3 {[%clk 0:02:29.4]}
11... e6 {[%clk 0:02:32.4]} 12. O-O-O {[%clk 0:02:27.2]} 12... Rc8 {[%clk
0:02:06.8]} 13. Kb1 {[%clk 0:02:23.9]} 13... Rxc3 {[%clk 0:01:21.4]} 14. bxc3
{[%clk 0:02:23.2]} 14... Qb6+ {[%clk 0:00:58.8]} 15. Kc1 {[%clk 0:02:16]} 15...
Ne2+ {[%clk 0:00:47.3]} 16. Bxe2 {[%clk 0:02:13.6]} 16... Ba3+ {[%clk
0:00:47.2]} 17. Kd2 {[%clk 0:02:12.5]} 17... Ne4+ {[%clk 0:00:47.4]} 18. Ke1
{[%clk 0:02:08.9]} 18... Nxg3 {[%clk 0:00:46.7]} 19. Bxg3 {[%clk 0:02:09.8]}
19... O-O {[%clk 0:00:44.8]} 20. Kf1 {[%clk 0:02:03.1]} 20... Rc8 {[%clk
0:00:43.8]} 21. Be5 {[%clk 0:01:59.6]} 21... f6 {[%clk 0:00:39.2]} 22. Bd4
{[%clk 0:01:59.7]} 22... Bc5 {[%clk 0:00:39.6]} 23. Kg2 {[%clk 0:01:56.9]} 23...
Bxd4 {[%clk 0:00:39.6]} 24. cxd4 {[%clk 0:01:57.8]} 24... Rxc2 {[%clk
0:00:38.9]} 25. Bf3 {[%clk 0:01:55.4]} 25... Qb2 {[%clk 0:00:35.1]} 26. Rhe1
{[%clk 0:01:54.4]} 26... Rxf2+ {[%clk 0:00:33.8]} 27. Kg3 {[%clk 0:01:51.1]}
27... Rh2 {[%clk 0:00:29]} 28. Rf1 {[%clk 0:01:45.8]} 28... Rd2 {[%clk
0:00:23.9]} 29. Rb1 {[%clk 0:01:41]} 29... Qxd4 {[%clk 0:00:21.6]} 30. Rxb7
{[%clk 0:01:41.2]} 30... Qe5+ {[%clk 0:00:21.8]} 31. Kh4 {[%clk 0:01:35.7]}
31... h5 {[%clk 0:00:18.9]} 32. Bh1 {[%clk 0:00:44.2]} 32... Qg5+ {[%clk
0:00:15.8]} 33. Kg3 {[%clk 0:00:44.2]} 33... h4+ {[%clk 0:00:16.1]} 34. Kf3
{[%clk 0:00:42.1]} 34... Rd3+ {[%clk 0:00:13.8]} 35. Kg2 {[%clk 0:00:36.6]}
35... Rg3+ {[%clk 0:00:12.6]} 36. Kh2 {[%clk 0:00:28.1]} 36... Qd2+ {[%clk
0:00:12.4]} 37. Bg2 {[%clk 0:00:27.8]} 37... Qxg2# {[%clk 0:00:12.5]} 0-1

[Event "*** Titled Tuesday Blitz"]
[Site "Chess.com"]
[Date "2021.02.02"]
[Round "8"]
[White "VladimirBugayev"]
[Black "IMJonathanCarlstedt"]
[Result "0-1"]
[WhiteElo "2258"]
[BlackElo "2486"]
[TimeControl "180+1"]
[EndTime "11:29:35 PST"]
[Termination "IMJonathanCarlstedt won on time"]

1. e4 {[%clk 0:03:00.9]} 1... e5 {[%clk 0:02:59.5]} 2. Nf3 {[%clk 0:03:01]} 2...
Nc6 {[%clk 0:02:59.5]} 3. d4 {[%clk 0:03:01.5]} 3... exd4 {[%clk 0:02:59.5]} 4.
Nxd4 {[%clk 0:03:01.5]} 4... Bc5 {[%clk 0:02:59.9]} 5. Nb3 {[%clk 0:03:01.4]}
5... Bb6 {[%clk 0:02:59.1]} 6. Nc3 {[%clk 0:03:01.9]} 6... Nf6 {[%clk 0:02:59]}
7. Qe2 {[%clk 0:03:02.1]} 7... O-O {[%clk 0:02:57.4]} 8. Bg5 {[%clk 0:03:02]}
8... h6 {[%clk 0:02:57.1]} 9. Bh4 {[%clk 0:02:59.9]} 9... g5 {[%clk 0:02:44]}
10. Bg3 {[%clk 0:02:56]} 10... d6 {[%clk 0:02:43.9]} 11. O-O-O {[%clk
0:02:54.3]} 11... a5 {[%clk 0:02:43.5]} 12. a4 {[%clk 0:02:44.2]} 12... Be6
{[%clk 0:02:42.4]} 13. h4 {[%clk 0:02:36.9]} 13... g4 {[%clk 0:02:39.2]} 14. Bf4
{[%clk 0:02:35.8]} 14... Kh7 {[%clk 0:02:31.2]} 15. e5 {[%clk 0:02:14.9]} 15...
Nh5 {[%clk 0:02:29.7]} 16. Qe4+ {[%clk 0:02:14.5]} 16... Kg7 {[%clk 0:02:17.7]}
17. Bd3 {[%clk 0:01:48.1]} 17... Rh8 {[%clk 0:02:10.9]} 18. exd6 {[%clk
0:01:40.9]} 18... Qf6 {[%clk 0:02:10]} 19. Be3 {[%clk 0:01:28.1]} 19... Bxe3+
{[%clk 0:01:58.6]} 20. Qxe3 {[%clk 0:01:27.3]} 20... cxd6 {[%clk 0:01:55.5]} 21.
Qb6 {[%clk 0:01:10.7]} 21... d5 {[%clk 0:01:25.1]} 22. g3 {[%clk 0:00:54.4]}
22... Nb4 {[%clk 0:01:17.3]} 23. Nd4 {[%clk 0:00:40.9]} 23... Rhc8 {[%clk
0:01:05.4]} 24. Rhe1 {[%clk 0:00:39.6]} 24... Nc6 {[%clk 0:00:56.9]} 25. Ndb5
{[%clk 0:00:31.4]} 25... Ra6 {[%clk 0:00:50.9]} 26. Qxb7 {[%clk 0:00:30.8]}
26... Nb4 {[%clk 0:00:44.5]} 27. Kb1 {[%clk 0:00:16.4]} 27... Rac6 {[%clk
0:00:38.3]} 28. Nd4 {[%clk 0:00:13.7]} 28... Qxd4 {[%clk 0:00:35.6]} 29. Nb5
{[%clk 0:00:11.4]} 29... Qb6 {[%clk 0:00:33.7]} 30. Qe7 {[%clk 0:00:10.7]} 30...
Qc5 {[%clk 0:00:24.8]} 31. Rxe6 {[%clk 0:00:08.9]} 31... Rxe6 {[%clk 0:00:21.1]}
32. Qb7 {[%clk 0:00:08.1]} 32... Nxd3 {[%clk 0:00:20.4]} 0-1

[Event "*** Titled Tuesday Blitz"]
[Site "Chess.com"]
[Date "2021.02.02"]
[Round "8"]
[White "A-S-00"]
[Black "BairaKovanova"]
[Result "1-0"]
[WhiteElo "2341"]
[BlackElo "2463"]
[TimeControl "180+1"]
[EndTime "11:29:36 PST"]
[Termination "A-S-00 won by resignation"]

1. d4 {[%clk 0:03:00.9]} 1... Nf6 {[%clk 0:02:59.4]} 2. c4 {[%clk 0:03:01]} 2...
e6 {[%clk 0:02:59.5]} 3. Nf3 {[%clk 0:02:57.8]} 3... Bb4+ {[%clk 0:02:58.5]} 4.
Bd2 {[%clk 0:02:58.1]} 4... Bxd2+ {[%clk 0:02:57.7]} 5. Nbxd2 {[%clk 0:02:57.1]}
5... O-O {[%clk 0:02:53.8]} 6. e4 {[%clk 0:02:56.4]} 6... d6 {[%clk 0:02:54.3]}
7. Bd3 {[%clk 0:02:55.6]} 7... e5 {[%clk 0:02:54]} 8. dxe5 {[%clk 0:02:42.1]}
8... dxe5 {[%clk 0:02:53.8]} 9. Nxe5 {[%clk 0:02:34.4]} 9... Re8 {[%clk
0:02:37.8]} 10. Ndf3 {[%clk 0:02:21.6]} 10... Qd6 {[%clk 0:02:36.5]} 11. c5
{[%clk 0:01:59.8]} 11... Qxc5 {[%clk 0:02:34.9]} 12. Rc1 {[%clk 0:01:45.1]}
12... Qa5+ {[%clk 0:02:23.8]} 13. Qd2 {[%clk 0:01:45.3]} 13... Rxe5 {[%clk
0:01:47.5]} 14. b4 {[%clk 0:01:26.4]} 14... Nxe4 {[%clk 0:01:46.2]} 15. bxa5
{[%clk 0:01:22.6]} 15... Nxd2+ {[%clk 0:01:45.7]} 16. Nxe5 {[%clk 0:01:22.8]}
16... f6 {[%clk 0:01:27.7]} 17. Rxc7 {[%clk 0:01:12.4]} 17... Na6 {[%clk
0:01:26.9]} 18. Bxa6 {[%clk 0:00:40.3]} 18... fxe5 {[%clk 0:01:12.6]} 19. Bd3
{[%clk 0:00:31.9]} 19... e4 {[%clk 0:01:06.1]} 20. Bc2 {[%clk 0:00:27.3]} 20...
Nf3+ {[%clk 0:01:00.8]} 21. gxf3 {[%clk 0:00:27]} 21... exf3 {[%clk 0:01:01.7]}
22. Rg1 {[%clk 0:00:26.9]} 22... g6 {[%clk 0:01:00.3]} 23. Bb3+ {[%clk
0:00:26.3]} 23... Kh8 {[%clk 0:00:59.4]} 24. Kd2 {[%clk 0:00:25.5]} 24... Bf5
{[%clk 0:00:57.2]} 25. Ke3 {[%clk 0:00:25.3]} 25... b6 {[%clk 0:00:50.6]} 26.
axb6 {[%clk 0:00:20.6]} 26... axb6 {[%clk 0:00:51.5]} 27. Rd1 {[%clk 0:00:20.8]}
27... Rf8 {[%clk 0:00:49.2]} 28. Rd6 {[%clk 0:00:18.4]} 28... Bg4 {[%clk
0:00:47.3]} 29. Rxb6 {[%clk 0:00:17.5]} 29... Re8+ {[%clk 0:00:46.4]} 30. Kf4
{[%clk 0:00:15.4]} 30... Bf5 {[%clk 0:00:37.7]} 31. Rbb7 {[%clk 0:00:12.6]}
31... Re4+ {[%clk 0:00:36]} 32. Kg3 {[%clk 0:00:11.4]} 32... Rg4+ {[%clk
0:00:35.8]} 33. Kxf3 {[%clk 0:00:09.6]} 33... Be4+ {[%clk 0:00:34.5]} 34. Kxg4
{[%clk 0:00:09.6]} 34... Bxb7 {[%clk 0:00:35.4]} 35. Rxb7 {[%clk 0:00:09.8]}
35... h5+ {[%clk 0:00:34.9]} 36. Kg5 {[%clk 0:00:09.7]} 36... h4 {[%clk
0:00:35.2]} 37. Kh6 {[%clk 0:00:09.2]} 1-0

[Event "*** Titled Tuesday Blitz"]
[Site "Chess.com"]
[Date "2021.02.02"]
[Round "8"]
[White "chesslh19"]
[Black "barriochess"]
[Result "1-0"]
[WhiteElo "2262"]
[BlackElo "2415"]
[TimeControl "180+1"]
[EndTime "11:29:37 PST"]
[Termination "chesslh19 won by resignation"]

1. e4 {[%clk 0:03:00.9]} 1... c5 {[%clk 0:02:55.8]} 2. Nf3 {[%clk 0:02:59.9]}
2... Nc6 {[%clk 0:02:55.4]} 3. d4 {[%clk 0:02:59.8]} 3... cxd4 {[%clk
0:02:55.3]} 4. Nxd4 {[%clk 0:03:00.7]} 4... e5 {[%clk 0:02:55]} 5. Nb5 {[%clk
0:03:00]} 5... d6 {[%clk 0:02:55.4]} 6. N1c3 {[%clk 0:03:00.4]} 6... a6 {[%clk
0:02:55.5]} 7. Na3 {[%clk 0:03:00.5]} 7... Be7 {[%clk 0:02:56.2]} 8. Nd5 {[%clk
0:02:58.3]} 8... Nf6 {[%clk 0:02:56.7]} 9. Nxf6+ {[%clk 0:02:36.7]} 9... Bxf6
{[%clk 0:02:56.3]} 10. Nc4 {[%clk 0:02:36.8]} 10... O-O {[%clk 0:02:48.2]} 11.
Qxd6 {[%clk 0:02:25]} 11... Nd4 {[%clk 0:02:45.4]} 12. Qxd8 {[%clk 0:02:20.7]}
12... Rxd8 {[%clk 0:02:41]} 13. Bd3 {[%clk 0:02:14.7]} 13... Be6 {[%clk
0:02:33]} 14. Ne3 {[%clk 0:02:06.2]} 14... Rac8 {[%clk 0:02:27.5]} 15. Bd2
{[%clk 0:01:56.8]} 15... Bg5 {[%clk 0:02:22.9]} 16. Bc3 {[%clk 0:01:54.2]} 16...
Bxe3 {[%clk 0:02:13.9]} 17. fxe3 {[%clk 0:01:53.8]} 17... Nc6 {[%clk 0:01:57.4]}
18. O-O {[%clk 0:01:45.1]} 18... b5 {[%clk 0:01:57.8]} 19. a3 {[%clk 0:01:35.5]}
19... Rd7 {[%clk 0:01:56.8]} 20. Rad1 {[%clk 0:01:18.9]} 20... Rcd8 {[%clk
0:01:57]} 21. Be2 {[%clk 0:01:13.1]} 21... Bc4 {[%clk 0:01:51.3]} 22. Rxd7
{[%clk 0:01:10.5]} 22... Rxd7 {[%clk 0:01:49.8]} 23. Re1 {[%clk 0:01:02.4]}
23... Bxe2 {[%clk 0:01:46.6]} 24. Rxe2 {[%clk 0:01:03.3]} 24... a5 {[%clk
0:01:46.5]} 25. Rd2 {[%clk 0:00:58.7]} 25... Rxd2 {[%clk 0:01:46]} 26. Bxd2
{[%clk 0:00:59.6]} 26... f6 {[%clk 0:01:45.8]} 27. Kf2 {[%clk 0:00:56.8]} 27...
Kf7 {[%clk 0:01:45.5]} 28. Ke2 {[%clk 0:00:57]} 28... Ke6 {[%clk 0:01:44.2]} 29.
Kd3 {[%clk 0:00:52.1]} 29... h5 {[%clk 0:01:40.5]} 30. c4 {[%clk 0:00:48.1]}
30... b4 {[%clk 0:01:34.4]} 31. axb4 {[%clk 0:00:45.4]} 31... axb4 {[%clk
0:01:35.3]} 32. c5 {[%clk 0:00:37]} 32... f5 {[%clk 0:01:23.3]} 33. Kc4 {[%clk
0:00:28.7]} 33... fxe4 {[%clk 0:01:21.4]} 34. Bxb4 {[%clk 0:00:25.9]} 34... g5
{[%clk 0:01:15.5]} 35. Bc3 {[%clk 0:00:23]} 35... Ne7 {[%clk 0:01:10.6]} 36. b4
{[%clk 0:00:22.7]} 36... Nd5 {[%clk 0:01:11.1]} 37. Bd2 {[%clk 0:00:22.3]} 37...
Nf4 {[%clk 0:01:08.4]} 38. exf4 {[%clk 0:00:20.4]} 38... exf4 {[%clk 0:01:08.6]}
39. b5 {[%clk 0:00:20.4]} 39... e3 {[%clk 0:01:08.8]} 40. Be1 {[%clk 0:00:20.3]}
40... g4 {[%clk 0:01:09]} 41. Kd3 {[%clk 0:00:15.9]} 41... Kd5 {[%clk 0:01:07]}
42. c6 {[%clk 0:00:11.4]} 42... Kd6 {[%clk 0:01:04.4]} 43. Ke2 {[%clk
0:00:11.1]} 43... Kc7 {[%clk 0:01:03.9]} 44. h3 {[%clk 0:00:11]} 44... f3+
{[%clk 0:01:02.1]} 45. gxf3 {[%clk 0:00:11]} 45... gxh3 {[%clk 0:01:02.5]} 46.
Bg3+ {[%clk 0:00:10.9]} 46... Kb6 {[%clk 0:01:02.5]} 47. Kxe3 {[%clk 0:00:10.8]}
47... h4 {[%clk 0:01:01.1]} 48. Bh2 {[%clk 0:00:10.7]} 48... Ka7 {[%clk
0:01:00.3]} 49. Kf4 {[%clk 0:00:09.7]} 49... Kb6 {[%clk 0:01:01.2]} 50. Kg4
{[%clk 0:00:09.4]} 50... Kxb5 {[%clk 0:01:01.8]} 51. c7 {[%clk 0:00:09.5]} 51...
Kc6 {[%clk 0:01:01.7]} 52. c8=Q+ {[%clk 0:00:09.6]} 52... Kd5 {[%clk 0:01:02.6]}
53. Qd7+ {[%clk 0:00:09.6]} 1-0

[Event "*** Titled Tuesday Blitz"]
[Site "Chess.com"]
[Date "2021.02.02"]
[Round "8"]
[White "zurzan"]
[Black "Grineva_Marianna"]
[Result "1-0"]
[WhiteElo "2038"]
[BlackElo "2225"]
[TimeControl "180+1"]
[EndTime "11:29:37 PST"]
[Termination "zurzan won on time"]

1. f4 {[%clk 0:03:00.9]} 1... d6 {[%clk 0:02:58.3]} 2. Nf3 {[%clk 0:03:00.8]}
2... h6 {[%clk 0:02:58]} 3. g3 {[%clk 0:03:00.5]} 3... c6 {[%clk 0:02:57.5]} 4.
Bg2 {[%clk 0:03:00.7]} 4... Nd7 {[%clk 0:02:57.7]} 5. O-O {[%clk 0:03:00.9]}
5... Ngf6 {[%clk 0:02:54.7]} 6. d3 {[%clk 0:03:00.4]} 6... e5 {[%clk 0:02:53.6]}
7. e4 {[%clk 0:02:59.3]} 7... Be7 {[%clk 0:02:52.3]} 8. f5 {[%clk 0:02:58]} 8...
b5 {[%clk 0:02:49.5]} 9. h3 {[%clk 0:02:57]} 9... Qb6+ {[%clk 0:02:45.4]} 10.
Kh2 {[%clk 0:02:55.5]} 10... a5 {[%clk 0:02:36.7]} 11. c3 {[%clk 0:02:54.5]}
11... Ba6 {[%clk 0:02:36]} 12. Re1 {[%clk 0:02:53.1]} 12... b4 {[%clk
0:02:29.7]} 13. Be3 {[%clk 0:02:50.1]} 13... Qb7 {[%clk 0:02:28.4]} 14. Nh4
{[%clk 0:02:27.4]} 14... bxc3 {[%clk 0:02:20.1]} 15. bxc3 {[%clk 0:02:25.9]}
15... Qb2 {[%clk 0:02:18.6]} 16. Nd2 {[%clk 0:02:12.9]} 16... Qxc3 {[%clk
0:02:11.8]} 17. Rc1 {[%clk 0:02:12.2]} 17... Qxd3 {[%clk 0:02:07.9]} 18. Rxc6
{[%clk 0:02:11.5]} 18... Qa3 {[%clk 0:01:54.3]} 19. Qc2 {[%clk 0:01:43.9]} 19...
O-O {[%clk 0:01:36.4]} 20. Nc4 {[%clk 0:01:35.3]} 20... Bxc4 {[%clk 0:01:16.4]}
21. Rxc4 {[%clk 0:01:36.2]} 21... Nc5 {[%clk 0:01:09.2]} 22. Bc1 {[%clk
0:01:24.6]} 22... Qd3 {[%clk 0:00:43.2]} 23. Rxc5 {[%clk 0:01:24.3]} 23... Qa6
{[%clk 0:00:17.9]} 24. Rc6 {[%clk 0:01:20.2]} 24... Qb5 {[%clk 0:00:16.5]} 25.
Bf1 {[%clk 0:01:09.2]} 25... Qb8 {[%clk 0:00:14.4]} 26. Ba3 {[%clk 0:00:58]}
26... Nh5 {[%clk 0:00:13.1]} 27. Nf3 {[%clk 0:00:54.3]} 27... Qd8 {[%clk
0:00:07.4]} 28. Rd1 {[%clk 0:00:50.3]} 28... Rb8 {[%clk 0:00:06.1]} 29. Nxe5
{[%clk 0:00:47.9]} 29... Bf6 {[%clk 0:00:01.4]} 30. Ng4 {[%clk 0:00:44.9]} 30...
Qe7 {[%clk 0:00:01.6]} 31. Nxf6+ {[%clk 0:00:43.6]} 31... Qxf6 {[%clk
0:00:02.5]} 32. Bb2 {[%clk 0:00:41.7]} 32... Qg5 {[%clk 0:00:02.3]} 33. Qg2
{[%clk 0:00:38]} 33... Rfe8 {[%clk 0:00:01.8]} 34. Rc2 {[%clk 0:00:32.8]} 34...
Rb4 {[%clk 0:00:01.1]} 35. e5 {[%clk 0:00:29.1]} 1-0

[Event "*** Titled Tuesday Blitz"]
[Site "Chess.com"]
[Date "2021.02.02"]
[Round "8"]
[White "kai_nov"]
[Black "NovikovaGalina"]
[Result "1-0"]
[WhiteElo "2384"]
[BlackElo "2242"]
[TimeControl "180+1"]
[EndTime "11:29:38 PST"]
[Termination "kai_nov won on time"]

1. d4 {[%clk 0:03:00.9]} 1... d5 {[%clk 0:02:59.9]} 2. c4 {[%clk 0:03:00.5]}
2... Nc6 {[%clk 0:02:58.7]} 3. Nc3 {[%clk 0:02:59.1]} 3... Nf6 {[%clk
0:02:57.7]} 4. Nf3 {[%clk 0:02:55.3]} 4... Bf5 {[%clk 0:02:56.6]} 5. Bf4 {[%clk
0:02:50.6]} 5... e6 {[%clk 0:02:56.1]} 6. e3 {[%clk 0:02:48.8]} 6... Bd6 {[%clk
0:02:10.5]} 7. Bg5 {[%clk 0:02:44.4]} 7... Be7 {[%clk 0:02:09.7]} 8. Rc1 {[%clk
0:02:37.7]} 8... O-O {[%clk 0:02:09]} 9. cxd5 {[%clk 0:02:34.5]} 9... exd5
{[%clk 0:02:09.9]} 10. a3 {[%clk 0:02:30.1]} 10... Ne4 {[%clk 0:01:58.9]} 11.
Bf4 {[%clk 0:02:29.5]} 11... a6 {[%clk 0:01:43.4]} 12. Bd3 {[%clk 0:02:25.1]}
12... Nxc3 {[%clk 0:01:34.4]} 13. Rxc3 {[%clk 0:02:22.8]} 13... Bxd3 {[%clk
0:01:35.3]} 14. Qxd3 {[%clk 0:02:22.4]} 14... Bd6 {[%clk 0:01:30.8]} 15. Qf5
{[%clk 0:02:08.9]} 15... Bxf4 {[%clk 0:01:29.9]} 16. Qxf4 {[%clk 0:02:08.7]}
16... Rc8 {[%clk 0:01:13.2]} 17. O-O {[%clk 0:02:07.6]} 17... Ne7 {[%clk
0:01:12.7]} 18. b4 {[%clk 0:01:56.4]} 18... Ng6 {[%clk 0:01:11.6]} 19. Qg3
{[%clk 0:01:53.1]} 19... c6 {[%clk 0:01:09.6]} 20. h4 {[%clk 0:01:48.5]} 20...
h6 {[%clk 0:01:06.2]} 21. h5 {[%clk 0:01:43.7]} 21... Ne7 {[%clk 0:01:06.4]} 22.
Ne5 {[%clk 0:01:38]} 22... Nf5 {[%clk 0:01:03.9]} 23. Qf4 {[%clk 0:01:38.1]}
23... Nd6 {[%clk 0:01:04.3]} 24. f3 {[%clk 0:01:28.3]} 24... a5 {[%clk
0:00:54.7]} 25. e4 {[%clk 0:01:20.9]} 25... axb4 {[%clk 0:00:54.2]} 26. axb4
{[%clk 0:01:19.9]} 26... Nb5 {[%clk 0:00:53.5]} 27. Rd3 {[%clk 0:01:16.1]} 27...
dxe4 {[%clk 0:00:51.9]} 28. fxe4 {[%clk 0:01:01.8]} 28... Nxd4 {[%clk
0:00:42.8]} 29. Qe3 {[%clk 0:00:18.9]} 1-0